[Event "Nové Hrady - Blesk"]
[Site "Nové Hrady, Czech Republic"]
[Date "2023.08.17"]
[Round "5.4"]
[White "Vybiral, Zdenek"]
[Black "Slabý, Matěj"]
[Result "1-0"]
[TimeControl "2x3+2s"]
[WhiteFideId "305200"]
[BlackFideId "23734876"]
[WhiteElo "2158"]
[BlackElo "1894"]

1. c4 {[%clk 00:03:02]} {[%emt 00:13:46]} Nc6 {[%clk 00:03:02]} {[%emt
00:00:04]} 2. Nc3 {[%clk 00:03:02]} {[%emt 00:00:03]} e5 {[%clk 00:03:02]}
{[%emt 00:00:01]} 3. Nf3 {[%clk 00:03:02]} {[%emt 00:00:07]} Nf6 {[%clk
00:03:02]} {[%emt 00:00:10]} 4. d4 {[%clk 00:03:02]} {[%emt 00:00:05]} exd4
{[%clk 00:03:02]} {[%emt 00:00:14]} 5. Nxd4 {[%clk 00:03:02]} {[%emt 00:00:02]}
Bb4 {[%clk 00:03:02]} {[%emt 00:00:02]} 6. Bg5 {[%clk 00:03:02]} {[%emt
00:00:03]} h6 {[%clk 00:03:02]} {[%emt 00:00:07]} 7. Bh4 {[%clk 00:03:02]}
{[%emt 00:00:01]} O-O {[%clk 00:03:02]} {[%emt 00:00:07]} 8. e3 {[%clk
00:03:02]} {[%emt 00:00:16]} d6 {[%clk 00:03:02]} {[%emt 00:00:25]} 9. Rc1
{[%clk 00:03:02]} {[%emt 00:00:07]} Ne5 {[%clk 00:03:02]} {[%emt 00:00:08]} 10.
Be2 {[%clk 00:03:02]} {[%emt 00:00:05]} Ng6 {[%clk 00:03:02]} {[%emt 00:00:05]}
11. Bxf6 {[%clk 00:03:02]} {[%emt 00:00:23]} Qxf6 {[%clk 00:03:02]} {[%emt
00:00:05]} 12. O-O {[%clk 00:03:02]} {[%emt 00:00:02]} Bxc3 {[%clk 00:03:02]}
{[%emt 00:00:08]} 13. Rxc3 {[%clk 00:03:02]} Bd7 {[%clk 00:03:01]} {[%emt
00:00:45]} 14. Bf3 {[%clk 00:02:56]} {[%emt 00:00:08]} Ne5 {[%clk 00:02:33]}
{[%emt 00:00:31]} 15. Be4 {[%clk 00:02:35]} {[%emt 00:00:23]} Rfe8 {[%clk
00:02:18]} {[%emt 00:00:18]} 16. Qc2 {[%clk 00:02:21]} {[%emt 00:00:15]} Nc6
{[%clk 00:02:06]} {[%emt 00:00:14]} 17. Nxc6 {[%clk 00:02:05]} {[%emt
00:00:18]} Bxc6 {[%clk 00:02:04]} {[%emt 00:00:04]} 18. Bxc6 {[%clk 00:02:05]}
bxc6 {[%clk 00:02:05]} {[%emt 00:00:02]} 19. Rb3 {[%clk 00:01:54]} {[%emt
00:00:13]} Rab8 {[%clk 00:02:03]} {[%emt 00:00:04]} 20. Rd1 {[%clk 00:01:40]}
{[%emt 00:00:16]} a5 {[%clk 00:01:38]} {[%emt 00:00:27]} 21. h3 {[%clk
00:01:40]} {[%emt 00:00:02]} Qe5 {[%clk 00:01:21]} {[%emt 00:00:19]} 22. Rd4
{[%clk 00:01:38]} {[%emt 00:00:05]} Qc5 {[%clk 00:00:57]} {[%emt 00:00:26]} 23.
Re4 {[%clk 00:01:35]} {[%emt 00:00:04]} d5 {[%clk 00:00:09]} {[%emt 00:00:50]}
24. Re5 {[%clk 00:01:11]} {[%emt 00:00:27]} Qxc4 {[%clk 00:00:05]} {[%emt
00:00:05]} 25. Qxc4 {[%clk 00:01:11]} {[%emt 00:00:02]} dxc4 {[%clk 00:00:06]}
{[%emt 00:00:03]} 26. Rxe8+ {[%clk 00:01:06]} {[%emt 00:00:05]} Rxe8 {[%clk
00:00:07]} 27. Rb7 {[%clk 00:01:07]} Re7 {[%clk 00:00:05]} {[%emt 00:00:05]} 28.
Ra7 {[%clk 00:01:06]} {[%emt 00:00:03]} f6 {[%clk 00:00:06]} {[%emt 00:00:02]}
29. Rxa5 {[%clk 00:01:05]} {[%emt 00:00:02]} Rd7 {[%clk 00:00:06]} {[%emt
00:00:02]} 30. g4 {[%clk 00:00:48]} {[%emt 00:00:18]} Rd2 {[%clk 00:00:08]} 31.
Ra8+ {[%clk 00:00:38]} {[%emt 00:00:13]} Kh7 {[%clk 00:00:09]} {[%emt
00:00:01]} 32. Rb8 {[%clk 00:00:39]} c5 {[%clk 00:00:07]} {[%emt 00:00:05]} 33.
Kf1 {[%clk 00:00:40]} c3 {[%clk 00:00:06]} {[%emt 00:00:02]} 34. bxc3 {[%clk
00:00:40]} Rxa2 {[%clk 00:00:08]} {[%emt 00:00:03]} 35. Rb5 {[%clk 00:00:41]}
{[%emt 00:00:01]} c4 {[%clk 00:00:06]} {[%emt 00:00:04]} 36. Rc5 {[%clk
00:00:42]} Ra4 {[%clk 00:00:05]} {[%emt 00:00:03]} 37. Rxc7 {[%clk 00:00:42]}
Kg6 {[%clk 00:00:07]} 38. h4 {[%clk 00:00:42]} {[%emt 00:00:05]} h5 {[%clk
00:00:07]} {[%emt 00:00:02]} 39. f3 {[%clk 00:00:39]} {[%emt 00:00:04]} hxg4 40.
fxg4 {[%clk 00:00:38]} Kh6 {[%clk 00:00:05]} {[%emt 00:00:03]} 41. Kg2 {[%clk
00:00:38]} {[%emt 00:00:02]} Kg6 {[%clk 00:00:04]} {[%emt 00:00:03]} 42. Kf3
{[%clk 00:00:38]} Kh6 {[%clk 00:00:04]} {[%emt 00:00:03]} 43. Ke4 {[%clk
00:00:39]} {[%emt 00:00:02]} Kg6 {[%emt 00:00:03]} 1-0

[Event "Nové Hrady - Blesk"]
[Site "Nové Hrady, Czech Republic"]
[Date "2023.08.17"]
[Round "5.5"]
[White "Prinz, Hubert"]
[Black "Blazek, Jiri"]
[Result "0-1"]
[TimeControl "2x3+2s"]
[WhiteFideId "1639447"]
[BlackFideId "330515"]
[WhiteElo "1884"]
[BlackElo "2061"]

1. d4 {[%clk 00:03:04]} {[%emt 00:05:17]} d5 {[%clk 00:03:03]} {[%emt
00:00:01]} 2. Nf3 {[%clk 00:03:05]} e6 {[%clk 00:03:04]} {[%emt 00:00:02]} 3.
e3 {[%clk 00:03:05]} Bd6 {[%clk 00:03:03]} {[%emt 00:00:05]} 4. Bd3 {[%clk
00:03:06]} f5 {[%clk 00:03:03]} 5. Ne5 {[%clk 00:03:04]} {[%emt 00:00:06]} Nf6
{[%clk 00:03:04]} 6. O-O {[%clk 00:03:04]} O-O {[%clk 00:03:05]} {[%emt
00:00:04]} 7. c3 {[%clk 00:03:05]} c5 {[%clk 00:03:01]} {[%emt 00:00:08]} 8.
Nd2 {[%clk 00:03:05]} {[%emt 00:00:02]} Bxe5 {[%clk 00:02:55]} {[%emt
00:00:07]} 9. dxe5 {[%clk 00:03:06]} Nfd7 {[%clk 00:02:51]} {[%emt 00:00:07]}
10. f4 {[%clk 00:03:07]} Nc6 {[%clk 00:02:44]} {[%emt 00:00:12]} 11. Nf3 {[%clk
00:03:03]} {[%emt 00:00:05]} b6 {[%clk 00:02:36]} {[%emt 00:00:10]} 12. b3
{[%clk 00:03:03]} {[%emt 00:00:02]} Bb7 {[%clk 00:02:06]} {[%emt 00:00:32]} 13.
Ba3 {[%clk 00:02:52]} {[%emt 00:00:13]} h6 {[%clk 00:01:59]} {[%emt 00:00:09]}
14. c4 {[%clk 00:02:47]} {[%emt 00:00:06]} Ne7 {[%clk 00:01:54]} {[%emt
00:00:07]} 15. Qe2 {[%clk 00:02:36]} {[%emt 00:00:14]} Rf7 {[%clk 00:01:52]}
{[%emt 00:00:04]} 16. Rad1 {[%clk 00:02:34]} {[%emt 00:00:04]} Qc7 {[%clk
00:01:52]} {[%emt 00:00:02]} 17. Rd2 {[%clk 00:02:22]} {[%emt 00:00:14]} Ng6
{[%clk 00:01:50]} {[%emt 00:00:04]} 18. g3 {[%clk 00:02:18]} {[%emt 00:00:06]}
Rd8 {[%clk 00:01:40]} {[%emt 00:00:11]} 19. Rfd1 {[%clk 00:02:19]} Ne7 {[%clk
00:01:35]} {[%emt 00:00:09]} 20. cxd5 {[%clk 00:02:04]} {[%emt 00:00:16]} Nxd5
{[%clk 00:01:34]} {[%emt 00:00:03]} 21. Rc2 {[%clk 00:01:41]} {[%emt 00:00:25]}
Nb8 {[%clk 00:01:02]} {[%emt 00:00:34]} 22. b4 {[%clk 00:01:31]} {[%emt
00:00:12]} Nd7 {[%clk 00:00:49]} {[%emt 00:00:16]} 23. bxc5 {[%clk 00:01:27]}
{[%emt 00:00:05]} Nxc5 {[%clk 00:00:47]} {[%emt 00:00:04]} 24. Nd4 {[%clk
00:01:05]} {[%emt 00:00:24]} Qd7 {[%clk 00:00:45]} {[%emt 00:00:04]} 25. Bb5
{[%clk 00:01:01]} {[%emt 00:00:07]} Qe7 {[%clk 00:00:42]} {[%emt 00:00:05]} 26.
Nb3 {[%clk 00:00:51]} {[%emt 00:00:12]} Rc8 {[%clk 00:00:32]} {[%emt 00:00:11]}
27. Nxc5 {[%clk 00:00:47]} {[%emt 00:00:06]} bxc5 {[%clk 00:00:33]} 28. Bc4
{[%clk 00:00:43]} {[%emt 00:00:06]} Rd8 {[%clk 00:00:30]} {[%emt 00:00:05]} 29.
Kf2 {[%clk 00:00:37]} {[%emt 00:00:09]} Qc7 {[%clk 00:00:31]} 30. Bc1 {[%clk
00:00:25]} {[%emt 00:00:14]} Rfd7 {[%clk 00:00:32]} 31. Bxd5 {[%clk 00:00:16]}
{[%emt 00:00:12]} Rxd5 {[%clk 00:00:33]} {[%emt 00:00:01]} 32. Rxd5 {[%clk
00:00:17]} Rxd5 {[%clk 00:00:33]} {[%emt 00:00:03]} 33. Rd2 {[%clk 00:00:18]}
Qc6 {[%clk 00:00:31]} {[%emt 00:00:05]} 34. Rxd5 {[%clk 00:00:19]} Qxd5 {[%clk
00:00:32]} 35. Ke1 {[%clk 00:00:15]} {[%emt 00:00:08]} Qc6 {[%clk 00:00:32]}
{[%emt 00:00:03]} 36. Kd2 {[%clk 00:00:14]} {[%emt 00:00:02]} Ba6 {[%clk
00:00:34]} 37. Qe1 {[%clk 00:00:14]} {[%emt 00:00:03]} Qe4 {[%clk 00:00:33]}
{[%emt 00:00:03]} 38. Kc3 {[%clk 00:00:11]} {[%emt 00:00:05]} Qb4+ {[%clk
00:00:33]} {[%emt 00:00:02]} 0-1

[Event "Nové Hrady - Blesk"]
[Site "Nové Hrady, Czech Republic"]
[Date "2023.08.17"]
[Round "5.6"]
[White "Hostička, František"]
[Black "Papacek, Stepan"]
[Result "1-0"]
[TimeControl "2x3+2s"]
[WhiteFideId "302295"]
[BlackFideId "301035"]
[WhiteElo "2074"]
[BlackElo "2137"]

1. e4 {[%clk 00:03:02]} {[%emt 00:00:05]} e6 {[%clk 00:03:00]} {[%emt
00:00:07]} 2. d4 {[%clk 00:03:02]} {[%emt 00:00:02]} d5 {[%clk 00:03:01]} 3. e5
{[%clk 00:03:03]} c5 {[%clk 00:03:02]} {[%emt 00:00:03]} 4. c3 {[%clk
00:03:05]} Nc6 {[%clk 00:03:03]} {[%emt 00:00:02]} 5. Be3 {[%clk 00:03:07]}
cxd4 {[%clk 00:03:04]} 6. cxd4 {[%clk 00:03:08]} Nge7 {[%clk 00:03:04]} {[%emt
00:00:04]} 7. Nf3 {[%clk 00:03:09]} {[%emt 00:00:01]} Nf5 {[%clk 00:03:04]} 8.
Bd3 {[%clk 00:03:10]} Be7 {[%clk 00:02:55]} {[%emt 00:00:11]} 9. Nc3 {[%clk
00:03:09]} {[%emt 00:00:03]} O-O {[%clk 00:02:53]} {[%emt 00:00:04]} 10. O-O
{[%clk 00:03:07]} {[%emt 00:00:04]} h6 {[%clk 00:02:51]} {[%emt 00:00:04]} 11.
Qd2 {[%clk 00:03:06]} {[%emt 00:00:04]} Nxe3 {[%clk 00:02:49]} {[%emt
00:00:04]} 12. fxe3 {[%clk 00:03:05]} {[%emt 00:00:03]} f6 {[%clk 00:02:43]}
{[%emt 00:00:07]} 13. exf6 {[%clk 00:03:03]} {[%emt 00:00:05]} Bxf6 {[%clk
00:02:44]} 14. Rf2 {[%clk 00:03:02]} {[%emt 00:00:04]} Bd7 {[%clk 00:02:37]}
{[%emt 00:00:08]} 15. Raf1 {[%clk 00:03:00]} {[%emt 00:00:04]} Qe7 {[%clk
00:02:11]} {[%emt 00:00:29]} 16. Bb1 {[%clk 00:02:54]} {[%emt 00:00:08]} g5
{[%clk 00:02:00]} {[%emt 00:00:13]} 17. e4 {[%clk 00:02:24]} {[%emt 00:00:32]}
dxe4 {[%clk 00:01:39]} {[%emt 00:00:22]} 18. Nxe4 {[%clk 00:02:23]} {[%emt
00:00:03]} Qg7 {[%clk 00:01:40]} 19. d5 {[%clk 00:01:58]} {[%emt 00:00:29]} Bd4
{[%clk 00:01:18]} {[%emt 00:00:24]} 1-0

[Event "Nové Hrady - Blesk"]
[Site "Nové Hrady, Czech Republic"]
[Date "2023.08.17"]
[Round "5.7"]
[White "Steinbauer, Sebastian"]
[Black "Rausch, Rudolf"]
[Result "1-0"]
[TimeControl "2x3+2s"]
[WhiteFideId "399272"]
[BlackFideId "1639455"]
[WhiteElo "1660"]
[BlackElo "1806"]

1. e4 {[%clk 00:03:02]} {[%emt 00:00:02]} g6 {[%clk 00:03:03]} 2. d4 {[%emt
00:00:01]} d6 3. f4 {[%emt 00:00:02]} Bg7 4. c4 {[%clk 00:03:02]} {[%emt
00:00:03]} Nf6 {[%clk 00:03:05]} {[%emt 00:00:03]} 5. Nc3 {[%clk 00:03:03]}
{[%emt 00:00:02]} O-O {[%clk 00:03:04]} {[%emt 00:00:03]} 6. Nf3 {[%clk
00:03:04]} Nbd7 {[%clk 00:03:04]} {[%emt 00:00:02]} 7. Bd3 {[%clk 00:03:01]}
{[%emt 00:00:05]} c5 {[%clk 00:03:05]} {[%emt 00:00:01]} 8. d5 {[%clk
00:02:55]} {[%emt 00:00:09]} a6 {[%clk 00:03:06]} 9. a4 {[%clk 00:02:51]}
{[%emt 00:00:06]} h5 {[%clk 00:02:59]} {[%emt 00:00:08]} 10. O-O {[%clk
00:02:45]} {[%emt 00:00:08]} Nh7 {[%clk 00:02:39]} {[%emt 00:00:22]} 11. Be3
{[%clk 00:02:30]} {[%emt 00:00:17]} Ndf6 {[%clk 00:02:38]} {[%emt 00:00:03]} 12.
h3 {[%clk 00:02:25]} {[%emt 00:00:07]} Qb6 {[%clk 00:02:35]} {[%emt 00:00:05]}
13. Qd2 {[%clk 00:02:22]} {[%emt 00:00:06]} e6 {[%clk 00:02:19]} {[%emt
00:00:18]} 14. Rae1 {[%clk 00:01:24]} {[%emt 00:01:00]} exd5 {[%clk 00:02:16]}
{[%emt 00:00:05]} 15. cxd5 {[%clk 00:01:18]} {[%emt 00:00:07]} Bd7 {[%clk
00:02:06]} {[%emt 00:00:12]} 16. e5 {[%clk 00:01:14]} {[%emt 00:00:06]} dxe5
{[%clk 00:01:58]} {[%emt 00:00:10]} 17. fxe5 {[%clk 00:01:14]} {[%emt
00:00:02]} Ne8 {[%clk 00:01:54]} {[%emt 00:00:07]} 18. Kh1 {[%clk 00:01:04]}
{[%emt 00:00:12]} f5 {[%clk 00:01:31]} {[%emt 00:00:24]} 19. Bh6 {[%clk
00:00:47]} {[%emt 00:00:19]} Nc7 {[%clk 00:00:44]} {[%emt 00:00:50]} 20. Bxg7
{[%clk 00:00:35]} {[%emt 00:00:12]} Kxg7 {[%clk 00:00:45]} 21. e6 {[%clk
00:00:35]} {[%emt 00:00:05]} Be8 {[%clk 00:00:41]} {[%emt 00:00:05]} 22. Ne5
{[%clk 00:00:31]} {[%emt 00:00:06]} Rf6 {[%clk 00:00:32]} {[%emt 00:00:11]} 23.
g4 {[%clk 00:00:20]} {[%emt 00:00:13]} hxg4 {[%clk 00:00:33]} {[%emt 00:00:02]}
24. hxg4 {[%clk 00:00:21]} Qd6 {[%clk 00:00:25]} {[%emt 00:00:11]} 25. Bc2
{[%clk 00:00:10]} {[%emt 00:00:13]} b5 {[%clk 00:00:20]} {[%emt 00:00:07]} 26.
gxf5 {[%clk 00:00:11]} gxf5 {[%clk 00:00:20]} {[%emt 00:00:02]} 27. Rg1+ {[%clk
00:00:09]} {[%emt 00:00:04]} Bg6 {[%clk 00:00:17]} {[%emt 00:00:04]} 28. Rxg6+
{[%clk 00:00:08]} {[%emt 00:00:02]} Rxg6 {[%clk 00:00:18]} 29. Nxg6 {[%clk
00:00:09]} Kxg6 {[%clk 00:00:19]} 30. Rg1+ {[%clk 00:00:10]} Kf6 {[%clk
00:00:16]} {[%emt 00:00:09]} 31. Qh6+ {[%clk 00:00:08]} {[%emt 00:00:04]} Ke5
{[%clk 00:00:12]} {[%emt 00:00:07]} 32. Re1+ {[%clk 00:00:09]} {[%emt
00:00:02]} Kd4 {[%clk 00:00:08]} {[%emt 00:00:06]} 33. Qd2+ {[%clk 00:00:09]}
{[%emt 00:00:01]} Kc4 {[%clk 00:00:05]} {[%emt 00:00:05]} 34. b3+ {[%clk
00:00:10]} Kb4 {[%clk 00:00:03]} {[%emt 00:00:05]} 35. Nb1# {[%clk 00:00:11]}
1-0

[Event "Nové Hrady - Blesk"]
[Site "Nové Hrady, Czech Republic"]
[Date "2023.08.17"]
[Round "5.8"]
[White "Richtrova, Eliska"]
[Black "Mores, Antonin"]
[Result "1-0"]
[TimeControl "2x3+2s"]
[WhiteFideId "300683"]
[BlackFideId "23711485"]
[WhiteElo "2122"]
[BlackElo "1342"]

1. e4 {[%clk 00:03:03]} {[%emt 00:06:54]} c5 {[%clk 00:03:03]} 2. Nc3 {[%clk
00:03:04]} {[%emt 00:00:02]} Nc6 {[%clk 00:03:04]} 3. g3 {[%clk 00:03:05]} g6
{[%clk 00:03:03]} {[%emt 00:00:06]} 4. Bg2 {[%clk 00:03:06]} Bg7 {[%clk
00:03:04]} {[%emt 00:00:02]} 5. d3 {[%clk 00:03:06]} {[%emt 00:00:01]} Nf6
{[%clk 00:03:00]} {[%emt 00:00:06]} 6. h3 {[%clk 00:03:06]} {[%emt 00:00:02]}
O-O {[%clk 00:03:00]} {[%emt 00:00:03]} 7. Be3 {[%clk 00:03:01]} {[%emt
00:00:06]} d6 {[%clk 00:02:42]} {[%emt 00:00:20]} 8. Nge2 {[%clk 00:03:01]}
{[%emt 00:00:02]} Bd7 {[%clk 00:02:43]} {[%emt 00:00:02]} 9. O-O {[%clk
00:02:59]} {[%emt 00:00:03]} Qc7 {[%clk 00:02:36]} {[%emt 00:00:09]} 10. g4
{[%clk 00:02:57]} {[%emt 00:00:04]} h5 {[%clk 00:02:14]} {[%emt 00:00:24]} 11.
f3 {[%clk 00:02:31]} {[%emt 00:00:28]} a6 {[%clk 00:02:01]} {[%emt 00:00:16]}
12. Nf4 {[%clk 00:02:28]} {[%emt 00:00:05]} h4 {[%clk 00:01:31]} {[%emt
00:00:32]} 13. Qd2 {[%clk 00:02:10]} {[%emt 00:00:20]} Ne8 {[%clk 00:01:07]}
{[%emt 00:00:26]} 14. Nfd5 {[%clk 00:02:03]} {[%emt 00:00:07]} Qd8 {[%clk
00:00:57]} {[%emt 00:00:13]} 15. Bg5 {[%clk 00:02:04]} f6 {[%clk 00:00:56]}
{[%emt 00:00:03]} 16. Bxh4 g5 {[%emt 00:00:02]} 17. Bg3 {[%clk 00:01:58]}
{[%emt 00:00:08]} Bh6 {[%clk 00:00:59]} 18. f4 {[%clk 00:01:55]} {[%emt
00:00:07]} Be6 {[%clk 00:00:51]} {[%emt 00:00:09]} 19. fxg5 {[%clk 00:01:52]}
{[%emt 00:00:05]} Bxg5 {[%clk 00:00:52]} 20. Nf4 {[%clk 00:01:44]} {[%emt
00:00:12]} Ng7 {[%clk 00:00:52]} {[%emt 00:00:02]} 21. h4 {[%clk 00:01:37]}
{[%emt 00:00:09]} Bh6 {[%clk 00:00:41]} {[%emt 00:00:13]} 22. Qf2 {[%clk
00:01:21]} {[%emt 00:00:18]} Kh7 {[%clk 00:00:39]} {[%emt 00:00:03]} 23. Nxe6
{[%clk 00:01:20]} {[%emt 00:00:04]} Nxe6 {[%clk 00:00:40]} 24. Qf5+ {[%clk
00:01:21]} Kg7 {[%clk 00:00:40]} {[%emt 00:00:02]} 25. Qxe6 {[%clk 00:01:12]}
{[%emt 00:00:11]} Nd4 {[%clk 00:00:41]} {[%emt 00:00:02]} 26. Qd5 {[%clk
00:01:13]} Qd7 {[%clk 00:00:37]} {[%emt 00:00:07]} 27. g5 {[%clk 00:01:08]}
{[%emt 00:00:07]} fxg5 {[%clk 00:00:35]} {[%emt 00:00:03]} 28. hxg5 {[%clk
00:01:09]} {[%emt 00:00:01]} Rxf1+ {[%clk 00:00:26]} {[%emt 00:00:11]} 29. Rxf1
{[%clk 00:01:10]} e6 {[%clk 00:00:12]} {[%emt 00:00:18]} 30. gxh6+ {[%clk
00:01:09]} {[%emt 00:00:03]} Kxh6 {[%clk 00:00:13]} 31. Rf6+ {[%clk 00:01:06]}
{[%emt 00:00:09]} Kg7 {[%clk 00:00:15]} 32. Qg5+ {[%clk 00:01:06]} Kh8 {[%clk
00:00:16]} 33. Rh6+ {[%clk 00:01:07]} {[%emt 00:00:01]} Qh7 {[%clk 00:00:17]}
34. Rxh7+ {[%clk 00:01:05]} {[%emt 00:00:04]} Kxh7 {[%clk 00:00:18]} 35. Bxd6
{[%clk 00:01:05]} {[%emt 00:00:03]} Rg8 {[%clk 00:00:19]} {[%emt 00:00:02]} 36.
Qh5+ {[%clk 00:01:05]} Kg7 {[%clk 00:00:20]} {[%emt 00:00:03]} 37. e5 {[%clk
00:00:55]} {[%emt 00:00:12]} Nf5 {[%clk 00:00:12]} {[%emt 00:00:09]} 38. Ne4
{[%clk 00:00:54]} {[%emt 00:00:03]} a5 {[%clk 00:00:07]} {[%emt 00:00:08]} 39.
Nf6 {[%clk 00:00:49]} {[%emt 00:00:06]} Rh8 {[%clk 00:00:04]} {[%emt 00:00:06]}
40. Qg5+ {[%clk 00:00:50]} Kf7 {[%clk 00:00:00]} {[%emt 00:00:05]} 41. Bf3
{[%clk 00:00:50]} {[%emt 00:00:06]} Ke8 {[%emt 00:00:12]} 1-0

[Event "Nové Hrady - Blesk"]
[Site "Nové Hrady, Czech Republic"]
[Date "2023.08.17"]
[Round "5.9"]
[White "Sadil, Antonin"]
[Black "Mácová, Markéta"]
[Result "1-0"]
[TimeControl "2x3+2s"]
[WhiteFideId "23735597"]
[BlackFideId "23715588"]
[WhiteElo "1697"]
[BlackElo "1304"]

1. e4 {[%clk 00:03:02]} e5 {[%clk 00:03:03]} 2. Nf3 {[%clk 00:03:03]} Nc6
{[%clk 00:03:04]} {[%emt 00:00:04]} 3. d4 {[%clk 00:03:04]} exd4 {[%clk
00:03:05]} {[%emt 00:00:01]} 4. Bc4 {[%clk 00:03:04]} {[%emt 00:00:02]} Bc5
{[%clk 00:03:03]} {[%emt 00:00:04]} 5. Ng5 {[%clk 00:03:05]} {[%emt 00:00:01]}
Nh6 {[%clk 00:02:55]} {[%emt 00:00:09]} 6. Nxf7 {[%clk 00:03:04]} {[%emt
00:00:02]} Nxf7 {[%clk 00:02:56]} 7. Bxf7+ {[%clk 00:03:04]} {[%emt 00:00:04]}
Kxf7 {[%clk 00:02:57]} 8. Qh5+ {[%clk 00:03:05]} {[%emt 00:00:03]} Kf8 {[%clk
00:02:56]} {[%emt 00:00:03]} 9. Qxc5+ {[%clk 00:03:05]} Ke8 {[%clk 00:02:56]}
{[%emt 00:00:03]} 10. Bg5 {[%clk 00:02:58]} {[%emt 00:00:09]} Ne7 {[%clk
00:02:54]} {[%emt 00:00:04]} 11. Qxd4 {[%clk 00:02:50]} {[%emt 00:00:10]} Rg8
{[%clk 00:02:49]} {[%emt 00:00:08]} 12. Nc3 {[%clk 00:02:46]} {[%emt 00:00:05]}
d6 {[%clk 00:02:49]} {[%emt 00:00:02]} 13. Nd5 {[%clk 00:02:43]} {[%emt
00:00:05]} c5 {[%clk 00:02:37]} {[%emt 00:00:13]} 14. Qd3 {[%clk 00:02:34]}
{[%emt 00:00:09]} Qa5+ {[%clk 00:02:35]} {[%emt 00:00:07]} 15. c3 {[%clk
00:02:27]} {[%emt 00:00:08]} Nxd5 {[%clk 00:02:34]} {[%emt 00:00:04]} 16. Qxd5
{[%clk 00:02:26]} {[%emt 00:00:02]} Rf8 {[%clk 00:02:31]} {[%emt 00:00:06]} 17.
Qxd6 {[%clk 00:02:23]} {[%emt 00:00:05]} Rf7 {[%clk 00:01:55]} {[%emt
00:00:38]} 18. Rd1 {[%clk 00:02:05]} {[%emt 00:00:20]} Bg4 {[%clk 00:01:41]}
{[%emt 00:00:16]} 19. f3 {[%clk 00:02:05]} {[%emt 00:00:02]} Bh5 {[%clk
00:01:16]} {[%emt 00:00:27]} 20. O-O {[%clk 00:01:44]} {[%emt 00:00:23]} c4
{[%clk 00:01:03]} {[%emt 00:00:15]} 21. Rd5 {[%clk 00:01:37]} {[%emt 00:00:09]}
Qb6+ {[%clk 00:00:58]} {[%emt 00:00:07]} 22. Qxb6 {[%clk 00:01:37]} axb6 {[%clk
00:00:59]} 23. Rfd1 {[%clk 00:01:37]} {[%emt 00:00:05]} Rc7 {[%clk 00:00:29]}
{[%emt 00:00:31]} 24. Bf4 {[%clk 00:01:28]} {[%emt 00:00:12]} Re7 {[%clk
00:00:25]} {[%emt 00:00:05]} 25. Rxh5 {[%clk 00:01:28]} {[%emt 00:00:02]} Rxa2
{[%clk 00:00:20]} {[%emt 00:00:07]} 26. Rd2 {[%clk 00:01:11]} {[%emt 00:00:19]}
h6 {[%clk 00:00:20]} {[%emt 00:00:02]} 27. Re5 {[%clk 00:01:12]} Rxe5 {[%clk
00:00:21]} {[%emt 00:00:03]} 28. Bxe5 {[%clk 00:01:12]} Kf7 {[%clk 00:00:20]}
{[%emt 00:00:05]} 29. Bd4 {[%clk 00:01:12]} {[%emt 00:00:02]} Ra6 {[%clk
00:00:14]} {[%emt 00:00:07]} 30. Kf2 {[%clk 00:01:11]} {[%emt 00:00:03]} Kg6
{[%clk 00:00:13]} {[%emt 00:00:03]} 31. Be3 {[%clk 00:01:10]} {[%emt 00:00:03]}
Kf7 {[%clk 00:00:10]} {[%emt 00:00:06]} 32. Rd6 {[%clk 00:01:09]} {[%emt
00:00:02]} Ke7 {[%clk 00:00:09]} {[%emt 00:00:04]} 33. Rxb6 {[%clk 00:01:09]}
{[%emt 00:00:01]} Rxb6 {[%clk 00:00:08]} {[%emt 00:00:03]} 34. Bxb6 {[%clk
00:01:10]} {[%emt 00:00:02]} Kd6 {[%clk 00:00:09]} 35. Bd4 {[%clk 00:01:10]}
{[%emt 00:00:03]} Ke6 {[%clk 00:00:09]} {[%emt 00:00:02]} 36. Bxg7 {[%clk
00:01:10]} {[%emt 00:00:02]} Kf7 {[%clk 00:00:10]} 37. Bxh6 {[%clk 00:01:10]}
{[%emt 00:00:02]} Ke7 {[%clk 00:00:10]} {[%emt 00:00:02]} 38. Ke3 {[%clk
00:01:11]} Ke6 {[%clk 00:00:12]} 39. Kd4 {[%emt 00:00:03]} Kd6 40. Bf4+ {[%clk
00:01:13]} {[%emt 00:00:01]} Kc6 {[%clk 00:00:14]} 41. h4 {[%clk 00:01:14]} b6
{[%clk 00:00:15]} 42. h5 {[%emt 00:00:04]} b5 {[%emt 00:00:01]} 43. h6 {[%clk
00:01:15]} b4 {[%emt 00:00:02]} 44. cxb4 {[%clk 00:01:16]} c3 {[%clk 00:00:18]}
{[%emt 00:00:03]} 45. bxc3 {[%clk 00:01:17]} {[%emt 00:00:01]} Kd7 {[%clk
00:00:18]} 46. h7 {[%clk 00:01:18]} {[%emt 00:00:02]} Kc6 {[%clk 00:00:20]} 47.
h8=Q {[%clk 00:01:18]} {[%emt 00:00:03]} Kd7 {[%clk 00:00:20]} 48. Kd5 {[%clk
00:01:13]} {[%emt 00:00:08]} Ke7 {[%clk 00:00:17]} {[%emt 00:00:06]} 49. Bg5+
{[%clk 00:01:13]} {[%emt 00:00:02]} Kd7 {[%clk 00:00:16]} {[%emt 00:00:03]} 50.
Qd8# {[%clk 00:01:11]} {[%emt 00:00:03]} 1-0